bitfinex/quotes_BTCUSD_20230106
["timestamp","ask_amount","ask_price","bid_price","bid_amount"]
[1673003154924,2.48917741,16765.0,16764.0,0.02420029]
[1673003155186,1.98015873,16765.0,16764.0,0.596516]
[1673003155447,1.98015873,16765.0,16764.0,1.43812191]
[1673003155708,1.98015873,16765.0,16764.0,1.73812191]
[1673003156219,1.95485492,16765.0,16764.0,2.23812191]
[1673003156483,1.95528367,16765.0,16764.0,2.23812191]
[1673003156755,1.94085492,16765.0,16764.0,2.99325457]
[1673003157102,1.95485492,16765.0,16764.0,2.23812191]
[1673003157347,1.84617677,16765.0,16764.0,2.24662191]
[1673003157588,1.84617677,16765.0,16764.0,9.74662191]
[1673003157837,1.83217677,16765.0,16764.0,10.69529625]
[1673003158094,1.84617677,16765.0,16764.0,10.69529625]
[1673003158358,1.83217677,16765.0,16764.0,10.69529625]
[1673003158607,2.44106225,16765.0,16764.0,9.94662191]
[1673003160381,2.44106225,16765.0,16764.0,9.74662191]
[1673003160697,2.441491,16765.0,16764.0,9.74662191]
[1673003160966,2.441491,16765.0,16764.0,9.24662191]
[1673003161408,2.44106225,16765.0,16764.0,9.24662191]
[1673003162676,2.427491,16765.0,16764.0,9.24662191]
[1673003162929,2.44106225,16765.0,16764.0,9.24662191]
[1673003163961,2.441491,16765.0,16764.0,9.24662191]
[1673003164700,2.44106225,16765.0,16764.0,9.24662191]
[1673003167531,2.35954197,16765.0,16764.0,7.5085]
[1673003167797,2.08385466,16765.0,16759.0,0.50015]
[1673003168069,2.08385466,16765.0,16756.0,0.55354229]
[1673003168070,0.55483773,16760.0,16756.0,0.55354229]
[1673003168370,0.55554973,16757.0,16752.0,0.46999982]
[1673003168654,0.55554973,16757.0,16751.0,0.17790964]
[1673003168655,1.13846435,16755.0,16751.0,0.17790964]
[1673003168912,1.13846435,16755.0,16750.0,0.44499739]
[1673003168913,1.03954013,16753.0,16750.0,0.44499739]
[1673003169172,1.03954013,16753.0,16742.0,0.51550036]
[1673003169173,0.74830469,16751.0,16742.0,0.51550036]
[1673003169446,0.29856,16747.0,16745.0,0.00015]
[1673003169714,1.31644646,16744.0,16731.0,0.53395514]
[1673003170025,1.31644646,16744.0,16729.0,0.53461535]
[1673003170026,0.2,16732.0,16729.0,0.53461535]
[1673003170287,0.57698308,16731.0,16730.0,0.59551528]
[1673003170561,0.74062769,16731.0,16722.0,0.70184]
[1673003170833,0.23767789,16730.0,16723.0,0.67188977]
[1673003171093,0.23767789,16729.0,16724.0,0.050032]
[1673003171379,0.00015,16727.0,16722.0,0.475032]
[1673003171653,0.6263,16726.0,16723.0,0.02451353]
[1673003171916,0.23767789,16725.0,16721.0,0.3]
[1673003172177,0.23767789,16725.0,16723.0,0.29478353]
[1673003172435,0.00015,16727.0,16723.0,0.27027]
[1673003172736,0.00015,16727.0,16723.0,0.87027]
[1673003172994,0.00015,16727.0,16724.0,0.3]
[1673003172995,0.23782789,16727.0,16724.0,0.3]
[1673003173268,0.19510057,16727.0,16724.0,0.54991316]
[1673003173528,0.19663,16736.0,16726.0,1.19394767]
[1673003173784,0.23767789,16736.0,16726.0,0.59394767]
[1673003174105,0.69663,16740.0,16727.0,0.02451353]
[1673003174364,0.36184116,16734.0,16727.0,0.70097873]
[1673003174614,0.69663,16740.0,16727.0,0.02451353]
[1673003174873,0.5,16740.0,16726.0,13.81243413]
[1673003175126,0.00015,16734.0,16727.0,0.6764652]
[1673003175421,0.00015,16734.0,16727.0,0.59394767]
[1673003175422,0.38170522,16731.0,16727.0,0.59394767]
[1673003175675,0.23767789,16730.0,16726.0,5.9764823]
[1673003175946,0.23767789,16729.0,16727.0,0.5]
[1673003176239,0.23767789,16729.0,16726.0,5.9764823]
[1673003176240,0.23767789,16729.0,16728.0,0.27036671]
[1673003176501,0.00015,16734.0,16728.0,0.27027]
[1673003176748,0.00015,16734.0,16729.0,0.59394767]
[1673003177017,0.6216067,16738.0,16729.0,0.59394767]
[1673003177286,0.19553,16739.0,16729.0,0.59394767]
[1673003177287,0.39884098,16736.0,16729.0,0.59394767]
[1673003177551,0.3404819,16732.0,16729.0,0.59394767]
[1673003177802,0.23767789,16732.0,16730.0,9.669e-05]
[1673003178066,0.3914194,16733.0,16728.0,0.13615]
[1673003178321,0.23767789,16732.0,16728.0,0.13615]
[1673003178581,0.23767789,16731.0,16728.0,0.13615]
[1673003178832,0.23767789,16731.0,16729.0,9.67e-05]
[1673003179083,0.00015,16731.0,16729.0,9.67e-05]
[1673003179339,0.38215075,16738.0,16730.0,1.09394767]
[1673003179598,0.5,16741.0,16731.0,0.59394767]
[1673003179852,0.23767789,16741.0,16732.0,0.59394767]
[1673003180116,0.23767789,16741.0,16731.0,0.02499725]
[1673003180117,0.19721,16738.0,16731.0,0.02499725]
[1673003180373,0.19721,16738.0,16729.0,0.90302599]
[1673003180374,0.91669387,16737.0,16729.0,0.90302599]
[1673003180628,1.51064154,16736.0,16727.0,0.19704]
[1673003180891,1.2469595,16735.0,16727.0,0.19704]
[1673003181137,0.91669387,16734.0,16727.0,0.19704]
[1673003181417,0.23767789,16734.0,16727.0,1.794867]
[1673003181677,0.00015,16736.0,16730.0,0.6]
[1673003181933,0.33705039,16735.0,16732.0,1.6]
[1673003182181,0.39011508,16735.0,16733.0,9.668e-05]
[1673003182701,0.00028024,16732.0,16728.0,0.52514725]
[1673003182942,0.23767789,16731.0,16728.0,0.50015]
[1673003183212,0.00028024,16732.0,16729.0,0.1342167]
[1673003183213,0.23767789,16730.0,16729.0,0.1342167]
[1673003183461,0.00028024,16732.0,16729.0,0.3342167]
[1673003183728,0.00028024,16732.0,16731.0,1.6]
[1673003184005,0.00028024,16732.0,16731.0,1.9]
[1673003184243,0.00028024,16732.0,16731.0,1.90009669]
[1673003184491,0.87510598,16739.0,16732.0,0.00028]
[1673003184743,0.31992136,16741.0,16735.0,0.6]
[1673003184996,0.19764862,16742.0,16736.0,0.3]
[1673003185247,0.33489955,16742.0,16736.0,0.29985]
[1673003185500,0.23811651,16742.0,16736.0,0.29985]
[1673003185755,0.35158241,16739.0,16733.0,0.8]
[1673003186002,0.23767789,16738.0,16737.0,7.5]
[1673003186304,0.19627862,16742.0,16737.0,7.50184152]
[1673003186305,0.00043862,16742.0,16737.0,7.50184152]
[1673003186566,0.00043862,16742.0,16737.0,8.10184152]
[1673003186865,0.00043862,16742.0,16738.0,0.5]
[1673003187069,0.00015,16739.0,16738.0,0.5]
[1673003187323,0.00015,16739.0,16738.0,8.3]
[1673003187838,0.00015,16739.0,16738.0,9.32429512]
[1673003188103,0.00043862,16742.0,16738.0,9.52429512]
[1673003188350,0.00043862,16742.0,16741.0,0.6]
[1673003188351,0.00058862,16742.0,16741.0,0.6]
[1673003188605,0.00058862,16742.0,16741.0,0.1]
[1673003188851,0.00058862,16742.0,16741.0,0.23615]
[1673003189097,0.00058862,16742.0,16741.0,7.73615]
[1673003189350,0.00058862,16742.0,16741.0,7.6]
[1673003189612,0.00058862,16742.0,16741.0,8.29394767]
[1673003190117,0.00058862,16742.0,16741.0,9.89128267]
[1673003190373,0.00043862,16742.0,16741.0,10.19137471]
[1673003190630,0.00043862,16742.0,16741.0,10.21566983]
[1673003190891,8.62e-06,16742.0,16741.0,10.21566983]
[1673003191139,0.37848472,16750.0,16741.0,10.89291855]
[1673003191399,0.37848472,16750.0,16745.0,0.1]
[1673003191400,0.5911511,16750.0,16745.0,0.1]
[1673003191650,0.39485849,16751.0,16745.0,0.4]
[1673003191907,0.35435227,16748.0,16741.0,8.297335]
[1673003192162,0.23767789,16747.0,16741.0,8.097335]
[1673003192411,0.23767789,16747.0,16738.0,0.84811]
[1673003192412,0.23767789,16746.0,16742.0,0.58573691]
[1673003192666,0.23767789,16745.0,16742.0,0.59557707]
[1673003192924,0.00014156,16748.0,16743.0,9.203e-05]
[1673003193707,0.23781945,16748.0,16743.0,9.203e-05]
[1673003193958,0.23781945,16748.0,16744.0,0.61870199]
[1673003194217,0.32186503,16747.0,16744.0,0.61870199]
[1673003194504,0.23781945,16748.0,16742.0,0.67724872]
[1673003194505,0.00014156,16748.0,16745.0,9.202e-05]
[1673003194747,0.00014156,16748.0,16743.0,0.3]
[1673003195001,0.00014156,16748.0,16743.0,2.57448472]
[1673003195268,0.23781945,16748.0,16743.0,2.57448472]
[1673003195560,0.23767789,16747.0,16743.0,0.97724872]
[1673003195857,0.23767789,16746.0,16744.0,0.52869314]
[1673003196059,0.23767789,16747.0,16745.0,9.202e-05]
[1673003196318,0.00014156,16748.0,16746.0,0.50484354]
[1673003196857,0.00014156,16748.0,16747.0,0.3]
[1673003197119,0.00014156,16748.0,16747.0,0.30009201]
[1673003197374,0.00014156,16748.0,16747.0,1.30009201]
[1673003197634,0.00014156,16748.0,16747.0,1.80009201]
[1673003197884,1.56e-06,16748.0,16747.0,11.1712884]
[1673003198143,3.8520115,16754.0,16747.0,11.1712884]
[1673003198422,0.32556157,16753.0,16750.0,1.0]
[1673003198660,3.97107636,16754.0,16751.0,1.97724872]
[1673003198914,3.97107636,16754.0,16751.0,0.896979]
[1673003198915,3.52918371,16754.0,16751.0,0.896979]
[1673003199174,3.46914977,16754.0,16752.0,7.5]
[1673003199454,3.46914977,16754.0,16753.0,0.3]
[1673003199750,3.34982968,16754.0,16753.0,0.8]
[1673003199969,3.34982968,16754.0,16752.0,8.04185947]
[1673003200233,3.58750757,16754.0,16752.0,8.05797595]
[1673003200494,3.34982968,16754.0,16752.0,8.05797595]
[1673003200754,3.77895102,16754.0,16752.0,8.05797595]
[1673003201049,0.37645269,16753.0,16752.0,8.179492]
[1673003201545,3.72645057,16754.0,16752.0,7.5]
[1673003202081,3.34982968,16754.0,16752.0,8.12422152]
[1673003202347,3.34982968,16754.0,16753.0,9.197e-05]
[1673003202591,3.34982968,16754.0,16753.0,0.13421197]
[1673003203400,3.34982968,16754.0,16753.0,0.13412]
[1673003203688,3.34982968,16754.0,16753.0,0.13421197]
[1673003204264,3.26669817,16754.0,16753.0,0.13421197]
[1673003204505,3.04105549,16754.0,16753.0,0.43421197]
[1673003204755,3.04105549,16754.0,16753.0,1.07826312]
[1673003205008,3.04105549,16754.0,16753.0,0.77817115]
[1673003205248,3.27873338,16754.0,16753.0,8.14405115]
[1673003205485,3.04105549,16754.0,16753.0,8.14405115]
[1673003205732,3.04105549,16754.0,16753.0,7.5]
[1673003206294,3.04105549,16754.0,16753.0,9.633e-05]
[1673003206457,3.04105549,16754.0,16752.0,0.54873465]
[1673003206692,3.70443077,16754.0,16749.0,0.597182]
[1673003206929,0.66377252,16753.0,16750.0,7.5]
[1673003207166,0.23767789,16752.0,16750.0,7.5]
[1673003207405,0.23767789,16752.0,16750.0,8.05929378]
[1673003207406,0.5,16752.0,16750.0,8.05929378]
[1673003207650,3.07669483,16754.0,16751.0,0.70468588]
[1673003207905,2.5427166,16754.0,16753.0,1.0]
[1673003208169,2.5427166,16754.0,16753.0,1.596908]
[1673003208439,2.5377166,16754.0,16753.0,9.096908]
[1673003208681,2.5377166,16754.0,16753.0,11.88910427]
[1673003208917,2.5377166,16754.0,16753.0,11.88892109]
[1673003209405,2.5377166,16754.0,16753.0,11.91321621]
[1673003209646,2.5377166,16754.0,16753.0,11.91245307]
[1673003209885,2.47788676,16754.0,16753.0,11.91245307]
[1673003210151,2.47788676,16754.0,16753.0,11.88815795]
[1673003210152,2.37100338,16754.0,16753.0,11.88815795]
[1673003210392,2.37100338,16754.0,16753.0,11.384768]
[1673003211126,2.37100338,16754.0,16753.0,9.85299202]
[1673003211127,2.60868127,16754.0,16753.0,9.85299202]
[1673003211427,2.37100338,16754.0,16753.0,11.684768]
[1673003212118,2.2997478,16754.0,16753.0,12.18480781]
[1673003212366,2.15723664,16754.0,16753.0,12.18480781]
[1673003212607,2.15723664,16754.0,16753.0,11.984768]
[1673003215787,2.15723664,16754.0,16753.0,11.58485133]
[1673003216026,2.15723664,16754.0,16753.0,9.69391233]
[1673003216552,0.00015808,16754.0,16753.0,11.38631]
[1673003217563,0.00015808,16754.0,16753.0,11.68631]
[1673003217818,0.00015808,16754.0,16753.0,10.28786]
[1673003218065,0.00015808,16754.0,16753.0,10.48786]
[1673003218308,0.00015808,16754.0,16753.0,11.08786]
[1673003219519,0.00015808,16754.0,16753.0,11.38786]
[1673003219777,0.00015808,16754.0,16753.0,10.78786]
[1673003220059,0.00015808,16754.0,16753.0,12.01416]
[1673003220797,0.31824368,16759.0,16753.0,12.01416]
[1673003221042,0.55592157,16759.0,16755.0,1.0]
[1673003221288,0.41816632,16758.0,16755.0,0.596824]
[1673003221545,0.65716362,16759.0,16755.0,0.596824]
[1673003221780,0.23767789,16759.0,16756.0,7.5]
[1673003222014,0.38342134,16758.0,16756.0,6.32395144]
[1673003222256,0.40520819,16758.0,16756.0,6.32395144]
[1673003222783,0.40520819,16758.0,16752.0,0.596936]
[1673003222784,0.596746,16758.0,16752.0,0.596936]
[1673003223043,0.90139675,16757.0,16753.0,7.5]
[1673003223294,0.23767789,16756.0,16753.0,7.5]
[1673003223545,0.90139675,16756.0,16753.0,7.5]
[1673003223796,1.49820775,16756.0,16753.0,7.5]
[1673003224070,0.23767789,16755.0,16751.0,0.61096795]
[1673003224283,1.51317575,16754.0,16750.0,0.00015]
[1673003224519,0.90139675,16753.0,16750.0,0.00015]
[1673003225256,0.66371886,16754.0,16751.0,0.65909158]
[1673003225518,0.66371886,16756.0,16752.0,0.71975968]
[1673003225758,0.38013218,16755.0,16752.0,0.71975968]
[1673003226232,0.96097468,16757.0,16753.0,0.00026652]
[1673003226233,1.04076034,16757.0,16753.0,0.00026652]
[1673003226491,1.04076034,16757.0,16753.0,1.19404652]
[1673003226492,0.37704148,16757.0,16753.0,1.19404652]
[1673003226773,0.00015,16757.0,16754.0,0.3]
[1673003227019,0.35908196,16757.0,16755.0,0.596836]
[1673003227265,0.23782789,16757.0,16752.0,0.596937]
[1673003227550,0.23767789,16756.0,16752.0,1.10855778]
[1673003227784,0.23767789,16756.0,16752.0,0.596937]
[1673003228019,0.00015,16757.0,16754.0,0.5]
[1673003228264,0.34120913,16759.0,16755.0,1.15651638]
[1673003228509,0.34120913,16759.0,16755.0,1.596836]
[1673003229005,0.34120913,16759.0,16755.0,2.26055486]
[1673003229262,0.34120913,16759.0,16756.0,0.3]
[1673003229505,0.34120913,16759.0,16757.0,0.596765]
[1673003230000,0.34120913,16759.0,16756.0,0.596776]
[1673003230775,0.36703937,16758.0,16755.0,1.27888039]
[1673003231028,0.23767789,16757.0,16754.0,0.596845]
[1673003231287,0.23767789,16757.0,16755.0,0.51185059]
[1673003231535,0.53932505,16758.0,16755.0,0.51185059]
[1673003231783,1.03543145,16758.0,16755.0,0.51185059]
[1673003232029,0.66839208,16758.0,16753.0,1.193775]
[1673003232276,0.40996357,16757.0,16754.0,0.60990603]
[1673003232772,0.17228568,16757.0,16754.0,0.60990603]
[1673003233034,0.17228568,16756.0,16752.0,0.55294228]
[1673003233290,0.83600454,16755.0,16751.0,0.00015]
[1673003233560,1.09443305,16754.0,16751.0,0.69473619]
[1673003233809,1.44853223,16755.0,16752.0,0.61044661]
[1673003234131,0.52638486,16755.0,16752.0,0.61044661]
[1673003234333,0.79303081,16756.0,16752.0,1.20738161]
[1673003234853,0.35581256,16755.0,16752.0,1.20738161]
[1673003235109,0.59349045,16755.0,16752.0,1.20738161]
[1673003235381,0.35581256,16755.0,16752.0,1.20738161]
[1673003235632,0.78652675,16755.0,16752.0,1.20738161]
[1673003235881,0.78652675,16755.0,16753.0,0.70228295]
[1673003236405,0.77517318,16754.0,16750.0,0.597009]
[1673003236704,0.17743858,16752.0,16749.0,8.83232366]
[1673003236904,0.23767789,16751.0,16750.0,0.51908172]
[1673003237412,0.43586709,16752.0,16750.0,0.51908172]
[1673003237659,0.17743858,16752.0,16750.0,0.51908172]
[1673003237977,0.17743858,16752.0,16750.0,0.597011]
[1673003238170,0.60299986,16753.0,16752.0,0.52034318]
[1673003238171,0.17743858,16753.0,16752.0,0.52034318]
[1673003238434,0.17743858,16753.0,16752.0,1.11728618]
[1673003238704,0.75972518,16754.0,16752.0,1.11728618]
[1673003238960,0.75972518,16754.0,16753.0,0.0085]
[1673003239259,0.75957518,16754.0,16753.0,0.0085]
[1673003239775,0.41976177,16753.0,16752.0,0.0085]
[1673003240029,1.02276163,16753.0,16751.0,0.0085]
[1673003240284,0.44359778,16752.0,16751.0,0.0085]
[1673003240812,0.17743911,16752.0,16751.0,0.62647065]
[1673003241074,1.03049179,16753.0,16751.0,1.22344965]
[1673003241075,0.86335955,16753.0,16751.0,1.22344965]
[1673003241344,0.59720088,16753.0,16751.0,1.82042865]
[1673003242107,0.17743911,16754.0,16751.0,1.82042865]
[1673003242370,0.17743911,16754.0,16751.0,2.202458]
[1673003242629,0.44374778,16755.0,16752.0,0.3]
[1673003242878,0.50479098,16755.0,16753.0,0.605408]
[1673003243150,1.115371,16755.0,16753.0,0.605408]
[1673003243676,0.44359778,16755.0,16754.0,0.69296381]
[1673003243938,0.44359778,16755.0,16754.0,0.70146381]
[1673003244502,0.44359778,16755.0,16754.0,0.0085]
[1673003244699,0.44359778,16755.0,16753.0,0.0085]
[1673003244961,0.50683979,16754.0,16753.0,0.0085]
[1673003245228,0.32940068,16754.0,16752.0,0.0085]
[1673003245474,0.32940068,16754.0,16751.0,0.54149471]
[1673003245475,0.00514311,16752.0,16751.0,0.54149471]
[1673003245758,0.242821,16752.0,16751.0,0.54149471]
[1673003246001,0.00514311,16752.0,16751.0,0.54149471]
[1673003246770,0.00514311,16752.0,16750.0,0.596983]
[1673003247070,0.00514311,16752.0,16750.0,1.22207082]
[1673003248049,0.43117555,16752.0,16750.0,1.22207082]
[1673003248358,0.60863424,16752.0,16750.0,1.22207082]
[1673003248562,0.1826018,16752.0,16750.0,1.22207082]
[1673003248833,0.00514311,16752.0,16751.0,0.70037786]
[1673003249083,0.00514311,16752.0,16751.0,1.89433586]
[1673003250347,0.00514311,16752.0,16751.0,1.74465586]
[1673003250906,0.00514311,16752.0,16751.0,1.14767686]
[1673003251866,0.43706836,16752.0,16751.0,0.55069786]
[1673003252378,0.43706836,16752.0,16750.0,0.597005]
[1673003252628,0.61452705,16752.0,16750.0,0.6975765]
[1673003252881,0.61452705,16752.0,16750.0,1.2945885]
[1673003253425,0.43706836,16752.0,16750.0,1.2945885]
[1673003253638,0.00514311,16752.0,16751.0,0.78690676]
[1673003253882,0.00514311,16752.0,16751.0,1.38388576]
[1673003254141,0.00514311,16752.0,16751.0,1.98086476]
[1673003254392,0.00514311,16752.0,16751.0,2.05552154]
[1673003254648,0.00514311,16752.0,16751.0,2.652138]
[1673003254897,0.00514311,16752.0,16751.0,3.25534828]
[1673003255151,0.00514311,16752.0,16751.0,3.85534828]
[1673003255403,0.00514311,16752.0,16751.0,3.252138]
[1673003255943,0.00514311,16752.0,16751.0,3.20848481]
[1673003256191,0.00514311,16752.0,16751.0,2.20848481]
[1673003256437,0.00614311,16752.0,16751.0,1.90848481]
[1673003256687,0.00514311,16752.0,16751.0,1.90848481]
[1673003257312,0.00514311,16752.0,16751.0,9.40848481]
[1673003259271,0.00514311,16752.0,16751.0,9.25880481]
[1673003259531,0.00514311,16752.0,16751.0,8.66182581]
[1673003259807,0.00514311,16752.0,16751.0,1.16182581]
[1673003260281,0.00514311,16752.0,16751.0,8.05634681]
[1673003260536,0.44883875,16752.0,16751.0,8.05634681]
[1673003260793,0.1826018,16752.0,16751.0,8.05634681]
[1673003261056,0.00514311,16752.0,16751.0,8.65332581]
[1673003261298,0.00514311,16752.0,16751.0,1.15332581]
[1673003261821,0.00514311,16752.0,16751.0,9.25880481]
[1673003263835,0.56697369,16752.0,16751.0,0.56484681]
[1673003264088,0.83321064,16752.0,16751.0,0.0085]
[1673003264339,0.83321064,16752.0,16751.0,7.5085]
[1673003264888,0.56697369,16752.0,16751.0,7.5085]
[1673003265099,0.56697369,16752.0,16751.0,8.105479]
[1673003265351,0.56697369,16752.0,16751.0,0.605479]
[1673003265607,0.83321064,16752.0,16751.0,0.0085]
[1673003265859,0.83321064,16752.0,16751.0,7.5085]
[1673003266878,0.44883875,16752.0,16751.0,0.0085]
[1673003267442,0.1826018,16752.0,16751.0,0.0085]
[1673003267888,0.1826018,16752.0,16751.0,7.5085]
[1673003268896,0.1826018,16752.0,16751.0,0.0085]
[1673003269411,0.44883875,16752.0,16751.0,7.5085]
[1673003269664,1.01875693,16752.0,16751.0,7.5085]
[1673003269974,2.05709894,16752.0,16751.0,7.50840782]
[1673003270422,2.49086171,16752.0,16749.0,0.03713452]
[1673003270683,0.44445701,16750.0,16749.0,0.03713452]
[1673003270930,3.33531749,16750.0,16749.0,0.03713452]
[1673003271204,3.0976396,16750.0,16749.0,0.03713452]
[1673003272706,0.00719219,16748.0,16747.0,0.03713452]
[1673003272963,2.76366466,16748.0,16747.0,0.03713452]
[1673003273219,4.42662545,16748.0,16747.0,0.03713452]
[1673003273986,1.7655393,16748.0,16747.0,0.03713452]
[1673003274230,1.25717734,16748.0,16747.0,0.03713452]
[1673003274492,1.73943748,16748.0,16747.0,0.03713452]
[1673003274749,4.06289149,16748.0,16747.0,0.03713452]
[1673003275034,3.9002671,16748.0,16747.0,0.03713452]
[1673003275279,4.42000992,16748.0,16747.0,0.03713452]
[1673003275527,3.63843624,16748.0,16747.0,0.03713452]
[1673003275782,3.51857264,16748.0,16747.0,0.03713452]
[1673003276032,4.3168175,16748.0,16747.0,0.03713452]
[1673003276353,3.61944244,16748.0,16747.0,0.03713452]
[1673003276549,3.79707468,16748.0,16747.0,0.03713452]
[1673003276798,1.58060495,16748.0,16747.0,0.03713452]
[1673003277053,0.55061355,16748.0,16747.0,0.03713452]
[1673003277311,2.27304287,16748.0,16747.0,0.03713452]
[1673003277608,3.04745344,16748.0,16747.0,0.03713452]
[1673003277822,3.55306241,16748.0,16747.0,0.03713452]
[1673003278349,3.32109068,16748.0,16747.0,0.03713452]
[1673003278610,3.8401114,16748.0,16747.0,0.03713452]
[1673003278891,3.48547875,16748.0,16747.0,0.03713452]
[1673003279363,3.806539,16748.0,16747.0,0.03713452]
[1673003279619,4.16094678,16748.0,16747.0,0.03713452]
[1673003279878,3.64192606,16748.0,16747.0,0.03713452]
[1673003280177,3.4639684,16748.0,16747.0,0.03713452]
[1673003280642,2.61930096,16748.0,16747.0,0.03713452]
[1673003280931,1.15947441,16748.0,16747.0,0.03713452]
[1673003281185,0.54769541,16748.0,16747.0,0.03713452]
[1673003281706,2.68958152,16748.0,16747.0,0.03713452]
[1673003281956,3.28666752,16748.0,16747.0,0.03713452]
[1673003282204,2.97370874,16748.0,16747.0,0.03713452]
[1673003282464,0.63624306,16748.0,16747.0,0.03713452]
[1673003282785,0.54769541,16748.0,16747.0,0.03713452]
[1673003283216,0.37058851,16748.0,16747.0,0.03713452]
[1673003285034,0.04952826,16748.0,16747.0,0.6640402]
[1673003285312,0.04952826,16748.0,16747.0,1.53987652]
[1673003285787,0.04952826,16748.0,16747.0,2.14315127]
[1673003286046,0.04952826,16748.0,16747.0,2.22753223]
[1673003286317,0.04952826,16748.0,16747.0,1.33067784]
[1673003286825,0.04952826,16748.0,16747.0,1.63067784]
[1673003287338,0.04952826,16748.0,16747.0,1.94302213]
[1673003287940,0.04952826,16748.0,16747.0,2.46318112]
[1673003288370,0.04952826,16748.0,16747.0,3.06030212]
[1673003289246,0.04952826,16748.0,16747.0,2.16318112]
[1673003289440,0.04952826,16748.0,16747.0,1.76030212]
[1673003289695,0.04952826,16748.0,16747.0,1.16318112]
[1673003290230,0.04952826,16748.0,16747.0,1.76030212]
[1673003290742,0.04952826,16748.0,16747.0,1.16318112]
[1673003291245,0.04952826,16748.0,16747.0,1.76030212]
[1673003291789,0.04952826,16748.0,16747.0,1.24014313]
[1673003292265,0.04952826,16748.0,16747.0,1.54014313]
[1673003292769,0.04952826,16748.0,16747.0,2.14501274]
[1673003293036,0.04952826,16748.0,16747.0,1.54014313]
[1673003293275,0.04952826,16748.0,16747.0,2.14545769]
[1673003293781,0.04952826,16748.0,16747.0,9.04014313]
[1673003295019,0.04952826,16748.0,16747.0,10.24556338]
[1673003296036,0.04952826,16748.0,16747.0,9.74014313]
[1673003296294,0.04952826,16748.0,16747.0,10.34014313]
[1673003297308,0.04952826,16748.0,16747.0,10.04014313]
[1673003297565,0.35723826,16748.0,16747.0,10.04014313]
[1673003297827,0.35723826,16748.0,16747.0,10.64014313]
[1673003298132,0.35723826,16748.0,16747.0,11.24583402]
[1673003298608,0.35723826,16748.0,16747.0,12.66608169]
[1673003298867,8.26e-06,16748.0,16747.0,12.66608169]
[1673003299126,8.26e-06,16748.0,16747.0,13.43968196]
[1673003299457,0.00015,16751.0,16748.0,5.174e-05]
[1673003299670,0.00015,16751.0,16750.0,1.0]
[1673003299924,0.00514311,16752.0,16750.0,3.16344106]
[1673003300200,0.00514311,16752.0,16751.0,0.3]
[1673003300457,0.00514311,16752.0,16751.0,9.002458]
[1673003300735,0.00514311,16752.0,16751.0,10.66337106]
[1673003300989,0.00514311,16752.0,16751.0,12.68361873]
[1673003301247,0.00514311,16752.0,16751.0,12.08361873]
[1673003301514,0.00514311,16752.0,16751.0,10.22270567]
[1673003301764,0.00502479,16752.0,16751.0,1.502458]
[1673003302273,0.00502479,16752.0,16751.0,9.002458]
[1673003302772,0.00502479,16752.0,16751.0,9.66337106]
[1673003303037,0.00502479,16752.0,16751.0,2.16337106]
[1673003303355,0.00502479,16752.0,16751.0,1.502458]
[1673003303530,0.00502479,16752.0,16751.0,9.002458]
[1673003303793,0.00602479,16752.0,16751.0,9.28342813]
[1673003304046,0.00502479,16752.0,16751.0,9.28342813]
[1673003304587,0.00502479,16752.0,16751.0,1.78342813]
[1673003306070,0.40968275,16752.0,16751.0,0.58097013]
[1673003306592,0.00502479,16752.0,16751.0,0.58097013]
[1673003306854,0.00502479,16752.0,16750.0,0.597014]
[1673003307143,0.00502479,16752.0,16749.0,1.29099388]
[1673003307144,0.68336898,16752.0,16749.0,1.29099388]
[1673003307379,0.68336898,16752.0,16749.0,0.69397088]
[1673003307641,0.4318494,16751.0,16749.0,0.69397088]
[1673003307904,0.00502479,16752.0,16749.0,1.29101588]
[1673003308518,0.00502479,16752.0,16750.0,0.0085]
[1673003309186,0.00502479,16752.0,16750.0,0.605508]
[1673003309962,0.00502479,16752.0,16750.0,1.202522]
[1673003310204,0.00502479,16752.0,16751.0,0.56988293]
[1673003310455,0.00502479,16752.0,16751.0,0.57838293]
[1673003311023,0.00502479,16752.0,16751.0,1.17536193]
[1673003311208,0.00502479,16752.0,16751.0,1.77234093]
[1673003312498,0.00502479,16752.0,16751.0,0.57838293]
[1673003313574,1.22006159,16752.0,16751.0,0.0085]
[1673003313784,0.44601169,16752.0,16750.0,0.0085]
[1673003314032,0.44601169,16752.0,16750.0,0.53560278]
[1673003315349,0.00502479,16752.0,16750.0,1.13261178]
[1673003315601,0.00502479,16752.0,16751.0,0.56205584]
[1673003315861,0.00502479,16752.0,16751.0,1.16753484]
[1673003316144,0.00502479,16752.0,16751.0,1.76451384]
[1673003316373,0.00502479,16752.0,16751.0,2.202458]
[1673003316624,0.00502479,16752.0,16751.0,3.01025436]
[1673003316873,0.00502479,16752.0,16751.0,2.01025436]
[1673003317132,0.00502479,16752.0,16751.0,1.71025436]
[1673003317638,0.44071369,16754.0,16751.0,1.71025436]
[1673003317872,0.61782059,16754.0,16752.0,0.60974082]
[1673003318144,0.17731344,16754.0,16752.0,1.80362582]
[1673003318729,0.00020654,16754.0,16752.0,1.80362582]
[1673003319904,0.17731344,16754.0,16752.0,1.80362582]
[1673003320404,0.17731344,16754.0,16753.0,0.70202733]
[1673003320663,0.17731344,16754.0,16753.0,1.30743533]
[1673003322528,0.17731344,16754.0,16753.0,0.71052733]
[1673003322767,0.44296799,16754.0,16753.0,0.71052733]
[1673003323284,0.79737577,16754.0,16753.0,0.0085]
[1673003323545,1.76061504,16754.0,16752.0,0.52573555]
[1673003323854,0.44416267,16753.0,16752.0,0.52573555]
[1673003324563,0.78571562,16753.0,16752.0,0.52566431]
[1673003326118,0.78571562,16753.0,16752.0,1.12260731]
[1673003327162,0.44416267,16753.0,16752.0,1.71955031]
[1673003327409,0.17766507,16753.0,16752.0,1.71955031]
[1673003327903,0.62111192,16754.0,16752.0,2.08372429]
[1673003327904,0.17787161,16754.0,16752.0,2.08372429]
[1673003328153,0.17787161,16754.0,16753.0,0.65874439]
[1673003328405,0.00020654,16754.0,16753.0,1.86106039]
[1673003328657,0.00020654,16754.0,16753.0,2.16106039]
[1673003330201,0.00020654,16754.0,16753.0,1.86106039]
[1673003331989,0.00020654,16754.0,16753.0,2.16106039]
[1673003333027,0.00020654,16754.0,16753.0,1.86106039]
[1673003333271,0.00020654,16754.0,16753.0,2.16106039]
[1673003334562,0.00020654,16754.0,16753.0,2.16322906]
[1673003335116,0.00020654,16754.0,16753.0,2.66322906]
[1673003335905,0.00020654,16754.0,16753.0,3.25717673]
[1673003336419,0.00020654,16754.0,16753.0,2.59626367]
[1673003336944,0.00020654,16754.0,16753.0,10.09626367]
[1673003337195,0.00020654,16754.0,16753.0,10.75717673]
[1673003337452,0.00020654,16754.0,16753.0,12.43254071]
[1673003337992,0.00020654,16754.0,16753.0,3.27162765]
[1673003338514,0.00020654,16754.0,16753.0,1.87767998]
[1673003338772,0.00020654,16754.0,16753.0,1.28077198]